[Event "XVII Juros Svente 2020-A"]
[Site "Klaipeda"]
[Date "2020.07.26"]
[Round "7.10"]
[White "Pocius, Vaclovas"]
[Black "Aleidzans, Vadims"]
[Result "1-0"]
[ECO "C11"]
[WhiteElo "1714"]
[BlackElo "1346"]
[Annotator "NA RC"]
[PlyCount "93"]
[EventDate "2020.07.20"]
[EventType "tourn"]
[EventCountry "LTU"]
[SourceTitle "playchess.com"]
[Source "ChessBase"]
[SourceQuality "1"]
[TimeControl "40/5400+30:1800+30"]

1. d4 {[%emt 0:00:00]} Nf6 {[%emt 0:00:00]} 2. Nc3 {[%emt 0:00:00]} d5 {[%emt 0:00:12]} 3. Bg5 {[%emt 0:00:10]} e6 {[%emt 0:00:37]} 4. e4 {[%emt 0:00:08]} dxe4 {[%emt 0:00:24]} 5. Nxe4 {[%emt 0:00:09]} Be7 {[%emt 0:00:21]} 6. Bxf6 {[%emt 0:00:25]} Bxf6 {[%emt 0:00:07]} 7. c3 {[%emt 0:00:06]} b6 {[%emt 0:00:47]} 8. Nf3 {[%emt 0:00:23]} Bb7 {[%emt 0:00:20]} 9. Bd3 {[%emt 0:00:08]} Nd7 {[%emt 0:01:17]} 10. Qe2 {[%emt 0:00:11]} a5 {[%emt 0:00:54]} 11. Bb5 {[%emt 0:05:37]} Bxe4 {[%emt 0:03:21]} 12. Qxe4 {[%emt 0:00:22]} O-O {[%emt 0:00:09]} 13. Qc6 {[%emt 0:03:28]} e5 {[%emt 0:24:28]} 14. Qxd7 {[%emt 0:13:10]} exd4 {[%emt 0:00:57]} 15. Qxd8 {[%emt 0:01:30]} Raxd8 {[%emt 0:00:19]} 16. Nxd4 {[%emt 0:08:30]} Bxd4 {[%emt 0:00:17]} 17. cxd4 {[%emt 0:00:10]} Rxd4 {[%emt 0:00:05]} 18. b3 {[%emt 0:02:32]} Re4+ {[%emt 0:00:33]} 19. Kd2 {[%emt 0:01:09]} Rd8+ {[%emt 0:00:08]} 20. Kc2 {[%emt 0:00:33]} Rd5 {[%emt 0:09:26]} 21. Rhd1 {[%emt 0:02:55]} Rc5+ {[%emt 0:00:49]} 22. Kb2 {[%emt 0:01:08]} g6 {[%emt 0:00:18]} 23. Bd3 {[%emt 0:02:35]} Rf4 {[%emt 0:00:38]} 24. f3 {[%emt 0:00:48]} Rh4 {[%emt 0:00:47]} 25. h3 {[%emt 0:00:05]} a4 {[%emt 0:01:15]} 26. Rac1 {[%emt 0:01:31]} Rg5 {[%emt 0:01:34]} 27. Bf1 {[%emt 0:00:12]} axb3 {[%emt 0:00:32]} 28. axb3 {[%emt 0:00:13]} c5 {[%emt 0:00:11]} 29. Rc2 {[%emt 0:00:45]} Re5 {[%emt 0:01:07]} 30. Rd6 {[%emt 0:01:30]} Rb4 {[%emt 0:00:26]} 31. Rc4 {[%emt 0:00:54]} Rxc4 {[%emt 0:01:37]} 32. Bxc4 {[%emt 0:00:13]} Rg5 {[%emt 0:00:09]} 33. g4 {[%emt 0:00:47]} Re5 {[%emt 0:00:59]} 34. Rxb6 {[%emt 0:00:35]} Re3 {[%emt 0:00:50]} 35. Rf6 {[%emt 0:01:41]} Re7 {[%emt 0:00:28]} 36. Ka3 {[%emt 0:01:01]} Ra7+ {[%emt 0:00:35]} 37. Ra6 {[%emt 0:00:20]} Re7 {[%emt 0:00:13]} 38. Ka4 {[%emt 0:01:27]} Kg7 {[%emt 0:00:19]} 39. g5 {[%emt 0:00:30]} Rb7 {[%emt 0:00:31]} 40. Rf6 {[%emt 0:00:27]} h6 {[%emt 0:01:25]} 41. Rxf7+ {[%emt 0:30:47]} Rxf7 {[%emt 0:30:07]} 42. Bxf7 {[%emt 0:00:25]} Kxf7 {[%emt 0:00:05]} 43. gxh6 {[%emt 0:00:08]} g5 {[%emt 0:00:10]} 44. Kb5 {[%emt 0:00:22]} Kg6 {[%emt 0:00:07]} 45. h7 {[%emt 0:00:07]} Kxh7 {[%emt 0:00:12]} 46. Kxc5 {[%emt 0:00:06]} Kg6 {[%emt 0:00:21]} 47. b4 {[%emt 0:00:07]} 1-0

[Event "XVII Juros Svente 2020-A"]
[Site "Klaipeda"]
[Date "2020.07.26"]
[Round "7.11"]
[White "Viliusis, Neimantas"]
[Black "Tolmacevs, Artjoms"]
[Result "0-1"]
[ECO "A04"]
[WhiteElo "1461"]
[BlackElo "1610"]
[Annotator "NA RC"]
[PlyCount "60"]
[EventDate "2020.07.20"]
[EventType "tourn"]
[EventCountry "LTU"]
[SourceTitle "playchess.com"]
[Source "ChessBase"]
[SourceQuality "1"]
[TimeControl "40/5400+30:1800+30"]

1. Nf3 {[%emt 0:00:00]} c5 {[%emt 0:00:00]} 2. g3 {[%emt 0:00:00]} Nc6 {[%emt 0:00:00]} 3. Bg2 {[%emt 0:00:00]} e5 {[%emt 0:00:00]} 4. d3 {[%emt 0:00:08]} Be7 {[%emt 0:00:12]} 5. O-O {[%emt 0:00:10]} d6 {[%emt 0:00:22]} 6. c4 {[%emt 0:01:23]} f5 {[%emt 0:00:05]} 7. Nc3 {[%emt 0:01:00]} Nf6 {[%emt 0:00:08]} 8. Bd2 {[%emt 0:01:48]} O-O {[%emt 0:00:26]} 9. a3 {[%emt 0:12:44]} Be6 {[%emt 0:06:57]} 10. Rb1 {[%emt 0:04:39]} a5 {[%emt 0:14:08]} 11. Qc2 {[%emt 0:11:17]} h6 {[%emt 0:10:53]} 12. Na2 {[%emt 0:05:21]} e4 {[%emt 0:02:33]} 13. Ne1 {[%emt 0:08:10]} Nd4 {[%emt 0:00:07]} 14. Qd1 {[%emt 0:00:26]} d5 {[%emt 0:10:07]} 15. e3 {[%emt 0:11:03]} dxc4 {[%emt 0:06:13]} 16. exd4 {[%emt 0:00:54]} cxd3 {[%emt 0:00:09]} 17. d5 {[%emt 0:01:07]} Nxd5 {[%emt 0:02:22]} 18. Nc3 {[%emt 0:01:01]} c4 {[%emt 0:02:34]} 19. b3 {[%emt 0:11:51]} Nxc3 {[%emt 0:06:42]} 20. Bxc3 {[%emt 0:00:47]} cxb3 {[%emt 0:00:15]} 21. f3 {[%emt 0:02:38]} Rc8 {[%emt 0:02:10]} 22. Bb2 {[%emt 0:03:27]} d2 {[%emt 0:03:21]} 23. fxe4 {[%emt 0:01:49]} dxe1=Q {[%emt 0:00:16]} 24. Rxe1 {[%emt 0:00:11]} fxe4 {[%emt 0:01:44]} 25. Bxe4 {[%emt 0:02:39]} Bc5+ {[%emt 0:02:01]} 26. Kh1 {[%emt 0:00:22]} Qxd1 {[%emt 0:03:02]} 27. Rbxd1 {[%emt 0:00:33]} Bg4 {[%emt 0:00:14]} 28. Rc1 {[%emt 0:02:29]} b6 {[%emt 0:01:32]} 29. Bd5+ {[%emt 0:00:48]} Kh8 {[%emt 0:00:17]} 30. Bxb3 {[%emt 0:00:44]} Bf3# {[%emt 0:00:04]} 0-1

[Event "XVII Juros Svente 2020-A"]
[Site "Klaipeda"]
[Date "2020.07.26"]
[Round "7.12"]
[White "Januseviciute, Donata"]
[Black "Ullrich, Karol"]
[Result "1/2-1/2"]
[ECO "D11"]
[WhiteElo "1520"]
[BlackElo "1404"]
[Annotator "NA RC"]
[PlyCount "84"]
[EventDate "2020.07.20"]
[EventType "tourn"]
[EventCountry "LTU"]
[SourceTitle "playchess.com"]
[Source "ChessBase"]
[SourceQuality "1"]
[TimeControl "40/5400+30:1800+30"]

1. d4 {[%emt 0:00:00]} d5 {[%emt 0:00:00]} 2. c4 {[%emt 0:00:00]} c6 {[%emt 0:00:00]} 3. Nf3 {[%emt 0:00:00]} Nf6 {[%emt 0:00:00]} 4. e3 {[%emt 0:00:00]} Bg4 {[%emt 0:00:09]} 5. h3 {[%emt 0:00:31]} Bh5 {[%emt 0:00:12]} 6. Nc3 {[%emt 0:00:19]} e6 {[%emt 0:00:19]} 7. a3 {[%emt 0:01:17]} Be7 {[%emt 0:01:23]} 8. Be2 {[%emt 0:03:00]} O-O {[%emt 0:00:42]} 9. O-O {[%emt 0:00:08]} dxc4 {[%emt 0:03:50]} 10. Bxc4 {[%emt 0:00:10]} b5 {[%emt 0:00:34]} 11. Be2 {[%emt 0:00:42]} a6 {[%emt 0:00:10]} 12. b4 {[%emt 0:00:57]} Nbd7 {[%emt 0:01:32]} 13. Bd2 {[%emt 0:02:13]} Nb6 {[%emt 0:08:16]} 14. Ne5 {[%emt 0:05:56]} Bxe2 {[%emt 0:00:21]} 15. Qxe2 {[%emt 0:00:37]} Qc7 {[%emt 0:00:51]} 16. f4 {[%emt 0:02:01]} Nbd5 {[%emt 0:01:10]} 17. Rfc1 {[%emt 0:02:00]} Qb7 {[%emt 0:01:36]} 18. Qf3 {[%emt 0:08:52]} Rac8 {[%emt 0:04:03]} 19. Nxd5 Nxd5 20. Qe4 {[%emt 0:01:24]} f5 {[%emt 0:02:39]} 21. Qf3 {[%emt 0:00:33]} Bd6 {[%emt 0:02:01]} 22. Nd3 {[%emt 0:01:29]} Nf6 {[%emt 0:00:34]} 23. Nc5 {[%emt 0:00:25]} Bxc5 {[%emt 0:00:10]} 24. Rxc5 {[%emt 0:02:57]} Ne4 {[%emt 0:00:17]} 25. Rc2 {[%emt 0:00:08]} g6 {[%emt 0:05:38]} 26. Rac1 {[%emt 0:01:06]} h5 {[%emt 0:00:56]} 27. Be1 {[%emt 0:00:16]} Kf7 {[%emt 0:01:50]} 28. g4 {[%emt 0:03:28]} hxg4 {[%emt 0:00:16]} 29. hxg4 {[%emt 0:00:08]} Ke7 {[%emt 0:01:35]} 30. Rh2 {[%emt 0:01:06]} Rh8 {[%emt 0:01:17]} 31. Qh1 {[%emt 0:01:30]} Rxh2 {[%emt 0:01:26]} 32. Qxh2 {[%emt 0:00:09]} Kd6 {[%emt 0:00:16]} 33. Qh6 {[%emt 0:03:25]} Rg8 {[%emt 0:04:13]} 34. Rc2 {[%emt 0:02:39]} Qf7 {[%emt 0:02:48]} 35. g5 {[%emt 0:01:24]} Kd7 {[%emt 0:01:35]} 36. Rh2 {[%emt 0:04:47]} Kd6 {[%emt 0:00:24]} 37. Qh7 {[%emt 0:06:07]} Ke7 {[%emt 0:00:13]} 38. Kg2 {[%emt 0:01:28]} Ke8 {[%emt 0:01:27]} 39. Kf3 {[%emt 0:02:32]} Kf8 {[%emt 0:01:47]} 40. Qh6+ {[%emt 0:02:19]} Qg7 {[%emt 0:00:58]} 41. Qh3 {[%emt 0:30:48]} Ke7 {[%emt 0:30:55]} 42. Qh7 {[%emt 0:09:17]} Kf7 {[%emt 0:00:38]} 1/2-1/2